fUSD/lending_fUSD_20250206
["ID","MTS","AMOUNT","RATE_DAILY","PERIOD"]
[351924242,1738846248388,-500.0,0.00019178,2]
[351924243,1738846248404,-565.95290848,0.00019178,2]
[351924244,1738846248419,-500.0,0.00019178,2]
[351924245,1738846248435,-500.0,0.00019178,2]
[351924246,1738846248451,-500.0,0.00019178,2]
[351924247,1738846248467,-500.0,0.00019178,2]
[351924248,1738846248482,-500.0,0.00019178,2]
[351924249,1738846248498,-500.0,0.00019178,2]
[351924250,1738846248513,-500.0,0.00019178,2]
[351924251,1738846248527,-500.0,0.00019178,2]
[351924252,1738846248543,-500.0,0.00019178,2]
[351924253,1738846248561,-953.77,0.00019178,2]
[351924254,1738846248576,-526.64538054,0.00019178,2]
[351924255,1738846248591,-930.79,0.00019178,2]
[351924256,1738846248607,-500.0,0.00019178,2]
[351924257,1738846248624,-500.0,0.00019178,2]
[351924258,1738846248643,-500.0,0.00019178,2]
[351924259,1738846248659,-500.0,0.00019178,2]
[351924260,1738846248677,-635.478512,0.00019178,2]
[351924261,1738846248696,-1252.47,0.00019178,2]
[351924262,1738846248712,-500.0,0.00019178,2]
[351924263,1738846248731,-500.0,0.00019178,2]
[351924264,1738846248750,-500.0,0.00019178,2]
[351924265,1738846248768,-154.56884015,0.00019178,2]
[351924266,1738846248785,-607.41160641,0.00019178,2]
[351924267,1738846248805,-710.3,0.00019178,2]
[351924268,1738846248824,-501.60140474,0.00019178,2]
[351924269,1738846248842,-500.0,0.00019178,2]
[351924270,1738846248860,-500.0,0.00019178,2]
[351924271,1738846248879,-500.0,0.00019178,2]
[351924272,1738846249054,-500.0,0.00019178,2]
[351924273,1738846249064,-500.0,0.00019178,2]
[351924274,1738846249074,-500.0,0.00019178,2]
[351924275,1738846249084,-500.0,0.00019178,2]
[351924276,1738846249095,-500.0,0.00019178,2]
[351924277,1738846249104,-1072.89,0.00019178,2]
[351924278,1738846249114,-1642.77,0.00019178,2]
[351924279,1738846249123,-500.0,0.00019178,2]
[351924280,1738846249133,-828.24,0.00019178,2]
[351924281,1738846249143,-500.0,0.00019178,2]
[351924282,1738846249153,-500.0,0.00019178,2]
[351924283,1738846249163,-500.0,0.00019178,2]
[351924284,1738846249173,-500.0,0.00019178,2]
[351924285,1738846249183,-500.0,0.00019178,2]
[351924286,1738846249193,-500.0,0.00019178,2]
[351924287,1738846249203,-500.0,0.00019178,2]
[351924288,1738846249213,-500.0,0.00019178,2]
[351924289,1738846249223,-1496.69,0.00019178,2]
[351924290,1738846249232,-500.0,0.00019178,2]
[351924291,1738846249242,-641.51,0.00019178,2]
[351924292,1738846249251,-1149.2,0.00019178,2]
[351924293,1738846249261,-500.0,0.00019178,2]
[351924294,1738846249271,-500.0,0.00019178,2]
[351924295,1738846249294,-865.92,0.00019178,2]
[351924296,1738846249307,-500.0,0.00019178,2]
[351924297,1738846249317,-500.0,0.00019178,2]
[351924298,1738846249326,-582.82950848,0.00019178,2]
[351924299,1738846249335,-500.0,0.00019178,2]
[351924300,1738846249345,-500.0,0.00019178,2]
[351924301,1738846249354,-500.59281529,0.00019178,2]
[351924302,1738846249364,-500.0,0.00019178,2]
[351924303,1738846249373,-518.91398945,0.00019178,2]
[351924304,1738846249383,-934.46,0.00019178,2]
[351924305,1738846249392,-500.0,0.00019178,2]
[351924306,1738846249402,-500.0,0.00019178,2]
[351924307,1738846249412,-500.0,0.00019178,2]
[351924308,1738846249421,-500.0,0.00019178,2]
[351924309,1738846249431,-500.0,0.00019178,2]
[351924310,1738846249441,-1164.35,0.00019178,2]
[351924311,1738846249451,-1071.44,0.00019178,2]
[351924312,1738846249461,-500.0,0.00019178,2]
[351924313,1738846249471,-500.0,0.00019178,2]
[351924314,1738846249481,-500.0,0.00019178,2]
[351924315,1738846249490,-151.0,0.00019178,2]
[351924316,1738846249500,-151.0,0.00019178,2]
[351924317,1738846249509,-151.0,0.00019178,2]
[351924318,1738846249519,-500.0,0.00019178,2]
[351924319,1738846249528,-151.0,0.00019178,2]
[351924320,1738846249537,-151.0,0.00019178,2]
[351924321,1738846249546,-500.0,0.00019178,2]
[351924322,1738846249557,-500.0,0.00019178,2]
[351924323,1738846249568,-500.0,0.00019178,2]
[351924324,1738846249577,-500.0,0.00019178,2]
[351924325,1738846249591,-860.79,0.00019178,2]
[351924326,1738846249602,-524.69,0.00019178,2]
[351924327,1738846249611,-500.0,0.00019178,2]
[351924328,1738846249621,-2259.32,0.00019178,2]
[351924329,1738846249631,-500.0,0.00019178,2]
[351924330,1738846249642,-1084.21,0.00019178,2]
[351924331,1738846249652,-500.0,0.00019178,2]
[351924332,1738846249663,-500.0,0.00019178,2]
[351924333,1738846249673,-500.0,0.00019178,2]
[351924334,1738846249683,-500.0,0.00019178,2]
[351924335,1738846249693,-500.0,0.00019178,2]
[351924336,1738846249703,-500.0,0.00019178,2]
[351924337,1738846249712,-504.63638472,0.00019178,2]
[351924338,1738846249722,-342.773697,0.00019178,2]
[351924339,1738846249731,-500.0,0.00019178,2]
[351924340,1738846249741,-500.0,0.00019178,2]
[351924341,1738846249751,-500.0,0.00019178,2]
[351924342,1738846249761,-500.0,0.00019178,2]
[351924343,1738846249771,-500.0,0.00019178,2]
[351924344,1738846249780,-814.33,0.00019178,2]
[351924345,1738846249790,-500.0,0.00019178,2]
[351924346,1738846249800,-500.0,0.00019178,2]
[351924347,1738846249809,-698.27,0.00019178,2]
[351924348,1738846249819,-500.0,0.00019178,2]
[351924349,1738846249829,-500.0,0.00019178,2]
[351924350,1738846249838,-500.0,0.00019178,2]
[351924351,1738846249847,-1051.97,0.00019178,2]
[351924352,1738846249857,-500.0,0.00019178,2]
[351924353,1738846249866,-765.65,0.00019178,2]
[351924354,1738846249876,-500.0,0.00019178,2]
[351924355,1738846249885,-500.0,0.00019178,2]
[351924356,1738846249895,-500.0,0.00019178,2]
[351924357,1738846249904,-500.0,0.00019178,2]
[351924358,1738846249914,-500.0,0.00019178,2]
[351924359,1738846249923,-500.0,0.00019178,2]
[351924360,1738846249933,-500.0,0.00019178,2]
[351924361,1738846249942,-500.0,0.00019178,2]
[351924362,1738846249952,-500.0,0.00019178,2]
[351924363,1738846249961,-850.52,0.00019178,2]
[351924364,1738846249970,-500.0,0.00019178,2]
[351924365,1738846249980,-500.0,0.00019178,2]
[351924366,1738846249989,-500.0,0.00019178,2]
[351924367,1738846249999,-1232.26,0.00019178,2]
[351924368,1738846250008,-500.0,0.00019178,2]
[351924369,1738846250017,-500.0,0.00019178,2]
[351924370,1738846250027,-151.0,0.00019178,2]
[351924371,1738846250036,-500.0,0.00019178,2]
[351924372,1738846250045,-151.0,0.00019178,2]
[351924373,1738846250055,-151.0,0.00019178,2]
[351924374,1738846250064,-151.0,0.00019178,2]
[351924375,1738846250073,-151.0,0.00019178,2]
[351924376,1738846250083,-780.01,0.00019178,2]
[351924377,1738846250091,-500.0,0.00019178,2]
[351924378,1738846250101,-500.0,0.00019178,2]
[351924379,1738846250110,-1926.69,0.00019178,2]
[351924380,1738846250120,-500.99697166,0.00019178,2]
[351924381,1738846250129,-2139.79,0.00019178,2]
[351924382,1738846250138,-151.0,0.00019178,2]
[351924383,1738846250147,-151.0,0.00019178,2]
[351924384,1738846250157,-500.0,0.00019178,2]
[351924385,1738846250166,-500.0,0.00019178,2]
[351924386,1738846250176,-500.0,0.00019178,2]
[351924387,1738846250187,-500.0,0.00019178,2]
[351924388,1738846250196,-500.0,0.00019178,2]
[351924389,1738846250206,-151.0,0.00019178,2]
[351924390,1738846250215,-151.0,0.00019178,2]
[351924391,1738846250225,-151.0,0.00019178,2]
[351924392,1738846250235,-500.0,0.00019178,2]
[351924393,1738846250248,-500.0,0.00019178,2]
[351924394,1738846250261,-1195.07,0.00019178,2]
[351924395,1738846250271,-671.0,0.00019178,2]
[351924396,1738846250280,-500.0,0.00019178,2]
[351924397,1738846250290,-366.4066722,0.00019178,2]
[351924398,1738846250300,-500.0,0.00019178,2]
[351924399,1738846250309,-500.0,0.00019178,2]
[351924400,1738846250320,-500.0,0.00019178,2]
[351924401,1738846250330,-768.36,0.00019178,2]
[351924402,1738846250341,-500.0,0.00019178,2]
[351924403,1738846250351,-500.0,0.00019178,2]
[351924404,1738846250363,-500.0,0.00019178,2]
[351924405,1738846250373,-500.0,0.00019178,2]
[351924406,1738846250383,-500.0,0.00019178,2]
[351924407,1738846250394,-500.0,0.00019178,2]
[351924408,1738846250404,-955.69,0.00019178,2]
[351924409,1738846250413,-500.0,0.00019178,2]
[351924410,1738846250423,-500.0,0.00019178,2]
[351924411,1738846250434,-500.0,0.00019178,2]
[351924412,1738846250444,-1786.28,0.00019178,2]
[351924413,1738846250453,-500.0,0.00019178,2]
[351924414,1738846250463,-1358.09,0.00019178,2]
[351924415,1738846250472,-1430.17,0.00019178,2]
[351924416,1738846250481,-500.0,0.00019178,2]
[351924417,1738846250491,-960.54,0.00019178,2]
[351924418,1738846250500,-1261.92,0.00019178,2]
[351924419,1738846250509,-837.85,0.00019178,2]
[351924420,1738846250519,-522.72825325,0.00019178,2]
[351924421,1738846250529,-500.0,0.00019178,2]
[351924422,1738846250539,-500.0,0.00019178,2]
[351924423,1738846250548,-500.0,0.00019178,2]
[351924424,1738846250559,-1032.7,0.00019178,2]
[351924425,1738846250569,-524.37947297,0.00019178,2]
[351924426,1738846250579,-500.0,0.00019178,2]
[351924427,1738846250588,-501.09616229,0.00019178,2]
[351924428,1738846250599,-500.0,0.00019178,2]
[351924429,1738846250608,-500.0,0.00019178,2]
[351924430,1738846250618,-500.0,0.00019178,2]
[351924431,1738846250628,-755.51,0.00019178,2]
[351924432,1738846250638,-500.0,0.00019178,2]
[351924433,1738846250648,-599.97,0.00019178,2]
[351924434,1738846250658,-1498.88,0.00019178,2]
[351924435,1738846250667,-1448.74,0.00019178,2]
[351924436,1738846250677,-500.0,0.00019178,2]
[351924437,1738846250689,-500.0,0.00019178,2]
[351924438,1738846250699,-500.0,0.00019178,2]
[351924439,1738846250708,-500.0,0.00019178,2]
[351924440,1738846250718,-500.0,0.00019178,2]
[351924441,1738846250728,-4363.74,0.00019178,2]
[351924442,1738846250737,-500.0,0.00019178,2]
[351924443,1738846250747,-500.0,0.00019178,2]
[351924444,1738846250756,-1156.18,0.00019178,2]
[351924445,1738846250766,-500.0,0.00019178,2]
[351924446,1738846250776,-500.0,0.00019178,2]
[351924447,1738846250786,-1082.61,0.00019178,2]
[351924448,1738846250796,-500.0,0.00019178,2]
[351924449,1738846250805,-500.0,0.00019178,2]
[351924450,1738846250815,-500.0,0.00019178,2]
[351924451,1738846250825,-500.0,0.00019178,2]
[351924452,1738846250835,-500.0,0.00019178,30]
[351924453,1738846250947,-500.0,0.00019178,2]
[351924454,1738846250958,-500.0,0.00019178,2]
[351924455,1738846250968,-500.0,0.00019178,2]
[351924456,1738846250978,-500.0,0.00019178,2]
[351924457,1738846250989,-852.8,0.00019178,2]
[351924458,1738846250998,-500.0,0.00019178,2]
[351924459,1738846251009,-1627.16,0.00019178,2]
[351924460,1738846251019,-500.0,0.00019178,2]
[351924461,1738846251029,-1406.61,0.00019178,2]
[351924462,1738846251039,-500.0,0.00019178,2]
[351924463,1738846251049,-500.0,0.00019178,2]
[351924464,1738846251058,-500.0,0.00019178,2]
[351924465,1738846251067,-500.0,0.00019178,2]
[351924466,1738846251077,-500.0,0.00019178,2]
[351924467,1738846251087,-2737.82,0.00019178,2]
[351924468,1738846251096,-500.0,0.00019178,2]
[351924469,1738846251106,-500.0,0.00019178,2]
[351924470,1738846251116,-500.0,0.00019178,2]
[351924471,1738846251126,-500.0,0.00019178,2]
[351924472,1738846251136,-500.0,0.00019178,2]
[351924473,1738846251145,-503.49143744,0.00019178,2]
[351924474,1738846251155,-1392.11,0.00019178,2]
[351924475,1738846251165,-501.14672074,0.00019178,2]
[351924476,1738846251175,-500.0,0.00019178,2]
[351924477,1738846251184,-1960.89,0.00019178,2]
[351924478,1738846251193,-500.0,0.00019178,2]
[351924479,1738846251203,-500.0,0.00019178,2]
[351924480,1738846251213,-500.0,0.00019178,2]
[351924481,1738846251222,-1194.79,0.00019178,2]
[351924482,1738846251232,-500.0,0.00019178,2]
[351924483,1738846251241,-500.0,0.00019178,2]
[351924484,1738846251251,-500.0,0.00019178,2]
[351924485,1738846251260,-500.0,0.00019178,2]
[351924486,1738846251270,-500.0,0.00019178,2]
[351924487,1738846251280,-500.0,0.00019178,2]
[351924488,1738846251290,-500.0,0.00019178,2]
[351924489,1738846251299,-500.0,0.00019178,2]
[351924490,1738846251309,-500.0,0.00019178,2]
[351924491,1738846251319,-500.0,0.00019178,2]
[351924492,1738846251328,-501.32360429,0.00019178,2]
[351924493,1738846251337,-1352.45,0.00019178,2]
[351924494,1738846251347,-500.0,0.00019178,2]
[351924495,1738846251356,-1842.88,0.00019178,2]
[351924496,1738846251365,-448.43050465,0.00019178,2]
[351924497,1738846251375,-500.0,0.00019178,2]
[351924498,1738846251384,-500.0,0.00019178,2]
[351924499,1738846251395,-500.0,0.00019178,2]
[351924500,1738846251404,-500.0,0.00019178,2]
[351924501,1738846251414,-500.0,0.00019178,2]
[351924502,1738846251423,-500.0,0.00019178,2]
[351924503,1738846251434,-501.86322651,0.00019178,2]
[351924504,1738846251444,-500.0,0.00019178,2]
[351924505,1738846251453,-2170.82,0.00019178,2]
[351924506,1738846251463,-1035.43,0.00019178,2]
[351924507,1738846251473,-813.75,0.00019178,2]
[351924508,1738846251482,-500.0,0.00019178,2]
[351924509,1738846251491,-503.26767099,0.00019178,2]
[351924510,1738846251501,-500.0,0.00019178,2]
[351924511,1738846251510,-500.0,0.00019178,2]
[351924512,1738846251520,-500.0,0.00019178,2]
[351924513,1738846251530,-500.0,0.00019178,2]
[351924514,1738846251539,-500.0,0.00019178,2]
[351924515,1738846251549,-572.09117263,0.00019178,2]
[351924516,1738846251562,-635.58,0.00019178,2]
[351924517,1738846251572,-502.83,0.00019178,2]
[351924518,1738846251583,-500.0,0.00019178,2]
[351924519,1738846251592,-1937.94,0.00019178,2]
[351924520,1738846251602,-502.82436707,0.00019178,2]
[351924521,1738846251612,-965.78,0.00019178,2]
[351924522,1738846251622,-500.0,0.00019178,2]
[351924523,1738846251631,-500.0,0.00019178,2]
[351924524,1738846251642,-503.36,0.00019178,2]
[351924525,1738846251651,-500.0,0.00019178,2]
[351924526,1738846251661,-538.72,0.00019178,2]
[351924527,1738846251670,-500.0,0.00019178,2]
[351924528,1738846251679,-500.0,0.00019178,2]
[351924529,1738846251691,-1191.19,0.00019178,2]
[351924530,1738846251700,-646.97,0.00019178,2]
[351924531,1738846251710,-676.42,0.00019178,2]
[351924532,1738846251719,-500.0,0.00019178,2]
[351924533,1738846251729,-1469.68,0.00019178,2]
[351924534,1738846251739,-500.0,0.00019178,2]
[351924535,1738846251748,-1167.19,0.00019178,2]
[351924536,1738846251757,-500.0,0.00019178,2]
[351924537,1738846251767,-2422.146487,0.00019178,2]
[351924538,1738846251777,-2422.146487,0.00019178,2]
[351924539,1738846251787,-2422.146487,0.00019178,2]
[351924540,1738846251796,-500.0,0.00019178,2]
[351924541,1738846251806,-178.417995,0.00019178,2]
[351924542,1738846251815,-2422.146487,0.00019178,2]
[351924543,1738846251825,-605.91,0.00019178,2]
[351924544,1738846251834,-2422.146487,0.00019178,2]
[351924545,1738846251843,-178.417995,0.00019178,2]
[351924546,1738846251853,-178.417995,0.00019178,2]
[351924547,1738846251862,-178.417995,0.00019178,2]
[351924548,1738846251872,-1814.25,0.00019178,2]
[351924549,1738846251881,-178.417995,0.00019178,2]
[351924550,1738846251891,-500.0,0.00019178,2]
[351924551,1738846251900,-2422.146487,0.00019178,2]
[351924552,1738846251909,-2422.146487,0.00019178,2]
[351924553,1738846251919,-2422.146487,0.00019178,2]
[351924554,1738846251928,-500.0,0.00019178,2]
[351924555,1738846251939,-2422.146487,0.00019178,2]
[351924556,1738846251948,-500.0,0.00019178,2]
[351924557,1738846251958,-2422.146487,0.00019178,2]
[351924558,1738846251968,-178.417995,0.00019178,2]
[351924559,1738846251978,-500.0,0.00019178,2]
[351924560,1738846251987,-178.417995,0.00019178,2]
[351924561,1738846251997,-500.0,0.00019178,2]
[351924562,1738846252007,-178.417995,0.00019178,2]
[351924563,1738846252018,-178.417995,0.00019178,2]
[351924564,1738846252029,-500.0,0.00019178,2]
[351924565,1738846252039,-500.0,0.00019178,2]
[351924566,1738846252049,-178.417995,0.00019178,2]
[351924567,1738846252060,-500.0,0.00019178,2]
[351924568,1738846252070,-500.0,0.00019178,2]
[351924569,1738846252079,-2990.99,0.00019178,2]
[351924570,1738846252089,-637.50345832,0.00019178,2]
[351924571,1738846252099,-500.0,0.00019178,2]
[351924572,1738846252108,-804.35,0.00019178,2]
[351924573,1738846252117,-502.9789374,0.00019178,2]
[351924574,1738846252127,-500.0,0.00019178,2]
[351924575,1738846252137,-1583.47,0.00019178,2]
[351924576,1738846252147,-505.65641087,0.00019178,2]
[351924577,1738846252157,-500.0,0.00019178,2]
[351924578,1738846252167,-706.68,0.00019178,2]
[351924579,1738846252177,-500.0,0.00019178,2]
[351924580,1738846252191,-500.0,0.00019178,2]
[351924581,1738846252201,-500.0,0.00019178,2]
[351924582,1738846252212,-1146.0,0.00019178,2]
[351924583,1738846252222,-500.0,0.00019178,2]
[351924584,1738846252232,-500.0,0.00019178,2]
[351924585,1738846252242,-500.0,0.00019178,2]
[351924586,1738846252251,-500.0,0.00019178,2]
[351924587,1738846252260,-500.0,0.00019178,2]
[351924588,1738846252270,-500.0,0.00019178,2]
[351924589,1738846252280,-665.19,0.00019178,2]
[351924590,1738846252289,-500.0,0.00019178,2]
[351924591,1738846252299,-500.0,0.00019178,2]
[351924592,1738846252308,-1178.74,0.00019178,2]
[351924593,1738846252318,-503.09379956,0.00019178,2]
[351924594,1738846252328,-500.0,0.00019178,2]
[351924595,1738846252337,-503.92633778,0.00019178,2]
[351924596,1738846252347,-500.0,0.00019178,2]
[351924597,1738846252356,-500.0,0.00019178,2]
[351924598,1738846252365,-1057.88,0.00019178,2]
[351924599,1738846252375,-500.0,0.00019178,2]
[351924600,1738846252384,-500.0,0.00019178,2]
[351924601,1738846252394,-500.0,0.00019178,2]
[351924602,1738846252403,-500.0,0.00019178,2]
[351924603,1738846252412,-500.0,0.00019178,2]
[351924604,1738846252422,-230.22887829,0.00019178,2]
[351924605,1738846252431,-500.0,0.00019178,2]
[351924606,1738846252445,-998.49,0.00019178,2]
[351924607,1738846252455,-500.0,0.00019178,2]
[351924608,1738846252464,-837.88,0.00019178,2]
[351924609,1738846252474,-500.0,0.00019178,2]
[351924610,1738846252484,-1087.83,0.00019178,2]
[351924611,1738846252493,-500.0,0.00019178,2]
[351924612,1738846252503,-500.0,0.00019178,2]
[351924613,1738846252512,-500.0,0.00019178,2]
[351924614,1738846252521,-609.22,0.00019178,2]
[351924615,1738846252531,-500.0,0.00019178,2]
[351924616,1738846252541,-500.0,0.00019178,2]
[351924617,1738846252550,-500.0,0.00019178,2]
[351924618,1738846252561,-500.0,0.00019178,2]
[351924619,1738846252571,-500.0,0.00019178,2]
[351924620,1738846252692,-500.0,0.00019178,2]
[351924621,1738846252702,-1149.76,0.00019178,2]
[351924622,1738846252712,-500.0,0.00019178,2]
[351924623,1738846252722,-500.0,0.00019178,2]
[351924624,1738846252732,-500.0,0.00019178,2]
[351924625,1738846252742,-500.0,0.00019178,2]
[351924626,1738846252752,-500.0,0.00019178,2]
[351924627,1738846252762,-500.0,0.00019178,2]
[351924628,1738846252772,-500.0,0.00019178,2]
[351924629,1738846252782,-500.0,0.00019178,2]
[351924630,1738846252791,-500.0,0.00019178,2]
[351924631,1738846252801,-667.19,0.00019178,2]
[351924632,1738846252812,-500.0,0.00019178,2]
[351924633,1738846252821,-500.0,0.00019178,2]
[351924634,1738846252832,-848.56,0.00019178,2]
[351924635,1738846252842,-917.63,0.00019178,2]
[351924636,1738846252852,-501.12029229,0.00019178,2]
[351924637,1738846252862,-500.0,0.00019178,2]
[351924638,1738846252872,-500.0,0.00019178,2]
[351924639,1738846252882,-504.25634877,0.00019178,2]
[351924640,1738846252892,-500.0,0.00019178,2]
[351924641,1738846252901,-500.0,0.00019178,2]
[351924642,1738846252911,-500.0,0.00019178,2]
[351924643,1738846252921,-1882.91,0.00019178,2]
[351924644,1738846252930,-500.0,0.00019178,2]
[351924645,1738846252944,-1478.32,0.00019178,2]
[351924646,1738846252954,-500.0,0.00019178,2]
[351924647,1738846252964,-1603.73,0.00019178,2]
[351924648,1738846252974,-500.0,0.00019178,2]
[351924649,1738846252984,-501.13028311,0.00019178,2]
[351924650,1738846252994,-500.0,0.00019178,2]
[351924651,1738846253004,-500.0,0.00019178,2]
[351924652,1738846253014,-1082.14,0.00019178,2]
[351924653,1738846253024,-580.3,0.00019178,2]
[351924654,1738846253034,-501.41046733,0.00019178,2]
[351924655,1738846253044,-776.5,0.00019178,2]
[351924656,1738846253054,-271.04015918,0.00019178,2]
[351924657,1738846253063,-500.0,0.00019178,2]
[351924658,1738846253073,-500.0,0.00019178,2]
[351924659,1738846253084,-1297.86,0.00019178,2]
[351924660,1738846253095,-500.22409697,0.00019178,2]
[351924661,1738846253105,-500.0,0.00019178,2]
[351924662,1738846253115,-500.0,0.00019178,2]
[351924663,1738846253125,-937.84,0.00019178,2]
[351924664,1738846253135,-500.0,0.00019178,2]
[351924665,1738846253145,-500.0,0.00019178,2]
[351924666,1738846253155,-1684.26,0.00019178,2]
[351924667,1738846253165,-1500.74564695,0.00019178,2]
[351924668,1738846253174,-501.78431692,0.00019178,2]
[351924669,1738846253186,-1420.63,0.00019178,2]
[351924670,1738846253196,-500.0,0.00019178,2]
[351924671,1738846253206,-500.0,0.00019178,2]
[351924672,1738846253216,-1096.75,0.00019178,2]
[351924673,1738846253225,-502.05536226,0.00019178,2]
[351924674,1738846253235,-500.0,0.00019178,2]
[351924675,1738846253245,-854.25,0.00019178,2]
[351924676,1738846253254,-500.0,0.00019178,2]
[351924677,1738846253263,-500.0,0.00019178,2]
[351924678,1738846253273,-500.0,0.00019178,2]
[351924679,1738846253282,-500.0,0.00019178,2]
[351924680,1738846253293,-151.0,0.00019178,2]
[351924681,1738846253303,-621.7,0.00019178,2]
[351924682,1738846253312,-151.0,0.00019178,2]
[351924683,1738846253321,-390.36488569,0.00019178,2]
[351924684,1738846253331,-151.0,0.00019178,2]
[351924685,1738846253340,-151.0,0.00019178,2]
[351924686,1738846253350,-500.0,0.00019178,2]
[351924687,1738846253360,-151.0,0.00019178,2]
[351924688,1738846253369,-151.0,0.00019178,2]
[351924689,1738846253379,-500.0,0.00019178,2]
[351924690,1738846253388,-500.0,0.00019178,2]
[351924691,1738846253397,-747.61,0.00019178,2]
[351924692,1738846253408,-500.46887542,0.00019178,2]
[351924693,1738846253418,-500.0,0.00019178,2]
[351924694,1738846253428,-500.0,0.00019178,2]
[351924695,1738846253439,-151.0,0.00019178,2]
[351924696,1738846253448,-151.0,0.00019178,2]
[351924697,1738846253458,-196.510023,0.00019178,2]
[351924698,1738846253467,-150.0,0.00019178,2]
[351924699,1738846253477,-310.11773278,0.00019222,2]
[351924700,1738846253486,-500.0,0.00019239,2]
[351924701,1738846253496,-486.22,0.00019242,30]
[351924702,1738846253506,-500.0,0.00019314,3]
[351924703,1738846253516,-500.0,0.00019314,3]
[351924704,1738846253527,-1717.09,0.00019314,3]
[351924705,1738846253537,-500.0,0.00019314,3]
[351924706,1738846253547,-953.93,0.00019314,3]
[351924707,1738846253561,-1626.26,0.00019314,3]
[351924708,1738846253571,-554.28,0.00019314,3]
[351924709,1738846253581,-1964.76,0.00019314,3]
[351924710,1738846253591,-1149.2,0.00019314,3]
[351924711,1738846253602,-1307.9,0.00019314,3]
[351924712,1738846253612,-1499.72,0.00019314,3]
[351924713,1738846253622,-1105.83,0.00019314,3]
[351924714,1738846253632,-1313.9,0.00019314,3]
[351924715,1738846253643,-1653.1,0.00019314,3]
[351924716,1738846253653,-1679.97,0.00019314,3]
[351924717,1738846253663,-1023.49,0.00019314,3]
[351924718,1738846253672,-1052.68,0.00019314,3]
[351924719,1738846253681,-1314.58,0.00019314,3]
[351924720,1738846253693,-506.49,0.00019314,3]
[351924721,1738846253703,-2422.146487,0.00019314,2]
[351924722,1738846253712,-178.417995,0.00019314,2]
[351924723,1738846253722,-2422.146487,0.00019314,2]
[351924724,1738846253732,-178.417995,0.00019314,2]
[351924725,1738846253742,-1120.46,0.00019314,3]
[351924726,1738846253751,-1386.85,0.00019314,3]
[351924727,1738846253761,-1289.35,0.00019314,3]
[351924728,1738846253771,-1351.2,0.00019314,3]
[351924729,1738846253781,-1164.39,0.00019314,3]
[351924730,1738846253791,-500.0,0.00019314,3]
[351924731,1738846253801,-500.0,0.00019315,3]
[351924732,1738846253811,-500.0,0.00019315,3]
[351924733,1738846253821,-502.4050854,0.00019315,3]
[351924734,1738846253831,-500.0,0.00019315,3]
[351924735,1738846253841,-500.0,0.00019315,3]
[351924736,1738846253851,-500.0,0.00019315,3]
[351924737,1738846253860,-500.0,0.00019315,3]
[351924738,1738846253870,-500.0,0.00019315,3]
[351924739,1738846253880,-500.0,0.00019315,3]
[351924740,1738846253890,-500.0,0.00019315,3]
[351924741,1738846253900,-500.0,0.00019315,3]